Cogmind - Beta 13 @@@ ROGUE MODE // 2024.04.08 @ 15:24:19 // AFD2020/Player2 Player: Michael Result: Core destroyed Performance ------------- Evolutions (0) 0 Regions Visited (2) 400 Robots Destroyed (21) 105 Value Destroyed (285) 285 Prototype IDs (0) 0 Alien Tech Used (0) 0 Bonus (167) 167 TOTAL SCORE: 957 Bonus ------- High Alert Combat Kills 8 Follower Combat Kills 249 Friendly Fire -90 Cogmind --------- Core Integrity 0/250 Matter 240/300 Energy 250/250 System Corruption 0% Temperature Cool (0) Movement Walking (120) Location -10/Mines Parts ------- > --- POWER (1) -------- Ion Engine > --- PROPULSION (2) --- Aluminum Leg Aluminum Leg > --- UTILITY (2) ------ Small Storage Unit Weapon Shielding > --- WEAPON (2) ------- Assault Rifle Light Assault Rifle > --- INVENTORY (8) ---- Wheel Structural Scanner Structural Scanner Experimental Sensor Array Transport Network Coupler Weapon Shielding Assault Rifle Mini Grenade Launcher Peak State ------------ > --- POWER ------------ Ion Engine > --- PROPULSION ------- Aluminum Leg Aluminum Leg > --- UTILITY ---------- Small Storage Unit Weapon Shielding > --- WEAPON ----------- Light Assault Rifle Mini Grenade Launcher > --- INVENTORY -------- Wheel Structural Scanner Structural Scanner Experimental Sensor Array Transport Network Coupler Weapon Shielding Assault Rifle Assault Rifle [Rating: 9] Favorites ----------- Power Ion Engine Engine Ion Engine Propulsion Aluminum Leg Leg Aluminum Leg Utility Small Storage Unit Device Structural Scanner Storage Small Storage Unit Protection Weapon Shielding Weapon Assault Rifle Ballistic Gun Assault Rifle Launcher Mini Grenade Launcher Build | -11 -10 -10 ------- Run | Yrd Mat Min Slots Evolved . | . . . Power . | . . . Propulsion . | . . . Utility . | . . . Weapon . | . . . Parts Attached 17 | 6 7 4 Power 2 | 1 1 . Engine 2 | 1 1 . Core . | . . . Reactor . | . . . Propulsion 5 | 2 3 . Treads . | . . . Leg 5 | 2 3 . Wheel . | . . . Hover . | . . . Flight . | . . . Utility 3 | 1 2 . Device 1 | . 1 . Storage 1 | 1 . . Processor . | . . . Hackware . | . . . Protection 1 | . 1 . Artifact . | . . . Weapon 7 | 2 1 4 Energy Gun . | . . . Energy Cannon . | . . . Ballistic Gun 5 | 2 1 2 Ballistic Cannon . | . . . Launcher 2 | . . 2 Special Weapon . | . . . Impact Weapon . | . . . Slashing Weapon . | . . . Piercing Weapon . | . . . Special Melee Weapon . | . . . Unidentified Prototypes . | . . . Parts Lost . | . . . Power . | . . . Propulsion . | . . . Utility . | . . . Weapon . | . . . Highest Loss Streak . | . . . To Critical Strikes . | . . . Average Slot Usage (%) 98 | . 98 100 Engine 14 | . 14 14 Leg 28 | . 28 28 Device 6 | . 7 . Storage 14 | . 14 14 Protection 6 | . 4 14 Ballistic Gun 27 | . 28 26 Naked Turns . | . . . Heaviest Build 15 | 14 15 14 Greatest Support 20 | 20 20 20 Greatest Overweight (x) 1 | 1 . . Average Overweight (x) . | . . . Largest Inventory Capacity 8 | 8 8 8 Average Capacity 7 | 7 8 8 Most Carried 8 | 4 8 8 Average Carried 6 | 2 5 7 Final Capacity 8 | 8 8 8 Final Carried 8 | 4 8 8 Class Distribution -------------------- 59% | Mutant 40% | Scavenger-Mutant Dominant Class ---------------- Mutant | -10/Materials Scavenger-Mutant | -10/Mines Resources | -11 -10 -10 ----------- Run | Yrd Mat Min Matter Collected 620 | 210 364 46 Remotely . | . . . Salvage Created 724 | . 546 178 Parts 50 | . 37 13 Haulers Intercepted 2 | . 2 . Recyclers Shooed 3 | . 1 2 Parts Field Recycled . | . . . Retrieved Matter . | . . . Parts Self-Destructed . | . . . Prevented . | . . . Kills | -11 -10 -10 ------- Run | Yrd Mat Min Combat Hostiles Destroyed 18 | . 7 11 Guns 9 | . 7 2 AOE 9 | . . 9 Classes Destroyed 8 | . 6 2 Worker 3 | . . 3 Tunneler 3 | . 3 . Hauler 2 | . 2 . Recycler 3 | . 2 1 Operator 1 | . 1 . Swarmer 4 | . 2 2 Grunt 5 | . 5 . Assembled 9 | . . 9 Best Kill Streak 11 | . 4 11 Combat Bots Only 9 | . 2 9 Max Kills in Single Turn 6 | . 1 6 Gunslinging . | . . . Exploded 6 | . . 6 Melee . | . . . Uniques/NPCs Destroyed . | . . . Combat | -11 -10 -10 -------- Run | Yrd Mat Min Hostile Shots Fired 38 | . 31 7 Missed 15 | . 15 . Damage Taken 362 | . 196 166 Core 44 | . 9 35 Absorbed by Shields . | . . . Redirected to Shielding 15 | . 9 6 Core Remaining (%) 100 | 100 . . Volleys Fired 55 | . 43 12 Largest 2 | . 2 2 Hottest 40 | . 40 40 Shots Fired 107 | . 86 21 Gun 104 | . 86 18 Cannon . | . . . Launcher 3 | . . 3 Special . | . . . Kinetic 104 | . 86 18 Thermal . | . . . Explosive 3 | . . 3 Electromagnetic . | . . . Robot Hit Streak 13 | . 12 13 Robot Miss Streak 5 | . 5 5 Penetration Max . | . . . Secondary Targets 1 | . 1 . Max Gunslinging Chain 1 | . 1 . Shots Hit Robots 71 | . 60 11 Core Hits 51 | . 24 27 Critical Kills . | . . . Critical Parts Destroyed 1 | . 1 . Critical Strikes 1 | . 1 . Destroy 1 | . 1 . Melee Attacks . | . . . Impact . | . . . Slashing . | . . . Piercing . | . . . Sneak Attacks . | . . . Combat Hostiles . | . . . Follow-up Attacks . | . . . Damage Inflicted 1518 | . 730 788 Guns 840 | . 730 110 Cannons . | . . . Explosions 678 | . . 678 Melee . | . . . Ramming . | . . . Kinetic 840 | . 730 110 Thermal . | . . . Explosive 678 | . . 678 Electromagnetic . | . . . Impact . | . . . Slashing . | . . . Piercing . | . . . Highest Corruption . | . . . Average Corruption . | . . . Corruption Purged . | . . . Corruption Blocked . | . . . Overload Shots . | . . . Overflow Damage 10 | . . 10 Projectiles . | . . . Explosions 10 | . . 10 Melee . | . . . Knockbacks . | . . . Impact . | . . . Kinetic . | . . . Secondary . | . . . Self-Inflicted Damage 32 | . . 32 Shots 2 | . . 2 Rammed . | . . . Targets Rammed . | . . . Kicked . | . . . Crushed . | . . . Highest Temperature 6 | . 6 . Average Temperature 3 | . 3 . Received Heat Transfer 99 | . 99 . Siege Activations . | . . . Robots Corrupted . | . . . Combat Hostiles . | . . . Parts Fried . | . . . Impact Corruptions . | . . . Robots Melted . | . . . Combat Hostiles . | . . . Parts Melted . | . . . Heat Transferred . | . . . Parts Sabotaged . | . . . Parts Stolen . | . . . Parts Stripped . | . . . Power Chain Reactions . | . . . Alert | -11 -10 -10 ------- Run | Yrd Mat Min Peak Influence 483 | . 483 325 Initial 187 | . . 187 Average 255 | . 265 296 Maximum Alert Level 2 | . 2 1 Low Security (%) 37 | 100 43 . Level 1 39 | . 26 99 Level 2 22 | . 30 . Level 3 . | . . . Level 4 . | . . . Level 5 . | . . . High Security . | . . . Max Security . | . . . Squads Dispatched 6 | . 6 . Investigation 3 | . 3 . Extermination . | . . . Reinforcement 3 | . 3 . Assault . | . . . Garrison . | . . . Intercept . | . . . Searches Triggered . | . . . Construction Impeded . | . . . Haulers Reinforced . | . . . Active Scanning Responses . | . . . Cargo Convoy Interrupts . | . . . Stealth | -11 -10 -10 --------- Run | Yrd Mat Min Distress Signals 1 | . 1 . Communications Jammed . | . . . Distress Signals . | . . . Times Spotted 36 | . 23 13 Peak Tracking Total 9 | . 6 9 Tactical Retreats . | . . . Traps | -11 -10 -10 ------- Run | Yrd Mat Min Traps Triggered 2 | . 2 . Indirectly . | . . . Trap Hack Attempts . | . . . Triggered . | . . . Disarmed . | . . . Reprogrammed . | . . . Reused . | . . . Traps Extracted . | . . . Installed . | . . . Triggered . | . . . Machines | -11 -10 -10 ---------- Run | Yrd Mat Min Machines Disabled . | . . . Max in Single Turn . | . . . Machines Repaired . | . . . Machines Dismantled . | . . . Machines Sabotaged . | . . . Overloaded Fab Kills . | . . . Hacking | -11 -10 -10 --------- Run | Yrd Mat Min Machines Accessed 3 | . 3 . Terminals 3 | . 3 . Fabricators . | . . . Repair Stations . | . . . Recycling Units . | . . . Scanalyzers . | . . . Garrison Access . | . . . Total Hacks 8 | . 8 . Successful 2 | . 2 . Failed 6 | . 6 . Catastrophic 1 | . 1 . Database Lockouts . | . . . Manual 3 | . 3 . Terminals 8 | . 8 . Fabricators . | . . . Repair Stations . | . . . Recycling Units . | . . . Scanalyzers . | . . . Garrison Access . | . . . Terminal Hacks 2 | . 2 . Hauler Manifests 1 | . 1 . Zone Layout 1 | . 1 . Fabricator Hacks . | . . . Repair Station Hacks . | . . . Recycling Unit Hacks . | . . . Scanalyzer . | . . . Garrison Access Hacks . | . . . Unauthorized Hacks . | . . . Terminals . | . . . Fabricators . | . . . Repair Stations . | . . . Recycling Units . | . . . Scanalyzers . | . . . Garrison Access . | . . . Data Cores Recovered . | . . . Used . | . . . Hacking Detections 3 | . 3 . Full Trace Events . | . . . Feedback Events . | . . . Feedback Blocked . | . . . Robot Schematics Acquired . | . . . Robots Built . | . . . Authchips . | . . . Time . | . . . Total Robot Build Rating . | . . . Part Schematics Acquired . | . . . Parts Built . | . . . Authchips . | . . . Time . | . . . Total Part Build Rating . | . . . Parts Repaired . | . . . Time . | . . . Parts Recycled . | . . . Recycled Matter . | . . . Retrieved Matter . | . . . Retrieved Components . | . . . Parts Scanalyzed . | . . . Part Schematics Acquired . | . . . Parts Damaged . | . . . Bothacking | -11 -10 -10 ------------ Run | Yrd Mat Min Used RIF Installer . | . . . Robots Hacked . | . . . Non-combat . | . . . Combat . | . . . Robot Hacks Applied . | . . . Relay Couplers Released . | . . . Fabnet Peak Effective % . | . . . Robots Rewired . | . . . Allies Hacked . | . . . Hacks Repelled . | . . . Allies | -11 -10 -10 -------- Run | Yrd Mat Min Total Allies 1 | . 1 . Largest Group 1 | . 1 1 Highest-Rated Group 64 | . 64 64 Highest-Rated Ally 64 | . 64 64 Total Orders . | . . . Ally Attacks 51 | . 43 8 Total Damage 819 | . 647 172 Kills 15 | . 12 3 Allies Corrupted . | . . . Allies Melted . | . . . Intel | -11 -10 -10 ------- Run | Yrd Mat Min Robot Analysis Total . | . . . Derelict Logs Recovered . | . . . Drone Launches . | . . . Drone Recoveries . | . . . Exploration | -11 -10 -10 ------------- Run | Yrd Mat Min Turns Passed 1022 | 62 753 207 Spaces Moved 678 | 42 495 141 Core 6 | 6 . . Treads . | . . . Legs 672 | 36 495 141 Wheels . | . . . Hover . | . . . Flight . | . . . Fastest Speed 50 | 50 120 120 Average Speed 119 | 117 120 120 Slowest Speed 190 | 190 120 120 Overloaded Moves . | . . . Propulsion Burnouts . | . . . Robots Hopped . | . . . Cave-ins Triggered . | . . . Exploration Rate (%) 48 | 3 93 49 Regions Visited 2 Branch Regions 1 Pre-discovered Areas . | . . . Known Exits Taken . | . . . Unknown Exits Taken 2 | 1 1 . Scrap Searched . | . . . Spaces Dug . | . . . Terrain Destroyed 22 | . . 22 Melee . | . . . Projectile . | . . . AOE 22 | . . 22 Terrain Rammed . | . . . Walls Destroyed . | . . . Machines Disabled . | . . . Actions | -11 -10 -10 --------- Run | Yrd Mat Min Total 781 | 51 571 159 Wait 13 | . 13 . Move 676 | 41 494 141 Hop . | . . . Pick Up 11 | 4 6 1 Fast Attach 8 | 6 2 . Attach . | . . . Detach 1 | . 1 . Swap 9 | . 5 4 Drop 8 | . 7 1 Fire 55 | . 43 12 Melee . | . . . Ram . | . . . Kick . | . . . Crush . | . . . Escape Stasis . | . . . Rewire . | . . . Trap . | . . . Miscellaneous . | . . . Route ------- -11/Scrapyard -10/Materials (discovered 4 exits: [*Mat x2] / [*Min x2]) -10/Mines (discovered 2 exits: [*Mat x2]) History --------- Turn | Location | Event 23 | -11/Scrapyard | Discovered new exit (range 15) 63 | -11/Scrapyard | Entered Materials 140 | -10/Materials | Discovered new exit (range 5) 311 | -10/Materials | Build established: Mutant 580 | -10/Materials | Core integrity fell below 50% 588 | -10/Materials | Discovered new exit (range 16) 683 | -10/Materials | Discovered new exit (range 15) 778 | -10/Materials | Discovered new exit (range 16) 816 | -10/Materials | Entered Mines 837 | -10/Mines | Found a damaged Exp. Sensor Array with a note attached 840 | -10/Mines | Found Prototype Device 846 | -10/Mines | Received a Rocket Launcher from a helpful Derelict 849 | -10/Mines | Discovered new exit (range 15) 897 | -10/Mines | Build established: Scavenger-Mutant 920 | -10/Mines | Discovered new exit (range 9) 993 | -10/Mines | Assembled infested the area 1016 | -10/Mines | Core integrity fell below 20% 1023 | -10/Mines | Core destroyed Last Messages --------------- here fast, or hide and let 0b10 handle the infestation, then avoid the dispatch." 00996_ K-01 Serf collects debris. 01007_ T-07 Excavator system terminally corrupted. 01007_ K-01 Serf collects debris. 01008_ as-29415 destroyed. 01008_ K-01 Serf destroyed. 01010_ as-45740 destroyed. 01010_ as-50653 destroyed. 01010_ as-39488 destroyed. 01010_ as-90960 destroyed. 01010_ as-08930 destroyed. 01010_ as-61273 destroyed. 01015_ U-05 Engineer builds a Wall. 01016_ as-16446 destroyed. 01019_ as-63518 destroyed. 01020_ U-05 Engineer lays Concrete. 01022_ as-90173 destroyed. 01022_ U-05 Engineer builds a Wall. Map ----- +----------------------------------------------------+ | | | ????????????????????????????????????????????????? | | ????????????????????????????????????????????????? | | ??????####??????????????????????????????????????? | | ?????# ##?????????????????????????????????????? | | ????# #?????????????????????????????????????? | | #?## #?????????????????????????????????????? | | ### #??????????????????????????????????????? | | #???????????????????????????????????????? | | #????????????????????????????????????????? | | #??????????????????????????????????????????? | | ## #??#####???????????????????????????????????? | | ?## #### ##??????????????????????????????????? | | ??# ## ##?????????????????????????????????? | | ??## ##????????????????????????????????? | | ???## ##???????????????????????????????? | | ????## #???????????????????????????????? | | ????## ##?????#####????????????????????? | | ????# ##???## ##???????????????????? | | ???## ##?## #???????????????????? | | ???# #?# #???????????????????? | | ??# #?# ##??????????????????? | | ?# ## ##?????????????????? | | # # ##????????????????? | | # ### @ #????????????????? | | # ## = @ #????????????????? | | # # %% ##????????????????? | | ## ##### ### ##?????????????????? | | ?###????## % #?# #??????????????????? | | ?????????# =% ??#$#??????????????????? | | ?????????## u % ? ??????????????????? | | ??????????# ## ??????????????????? | | ?????????# ## #######?????????????????? | | ????????# ?##### ##???????????????????????? | | ???????# ?????##?????????????????????????? | | ???????? ????????????????????????????????? | | ????????# ?????????????????????????????????? | | ?????????## ##?????????????????????????????????? | | ??????????? ????????????????????????????????????? | | ????????????????????????????????????????????????? | | ????????????????????????????????????????????????? | | ????????????????????????????????????????????????? | | ????????????????????????????????????????????????? | | ????????????????????????????????????????????????? | | ????????????????????????????????????????????????? | | ????????????????????????????????????????????????? | | ????????????????????????????????????????????????? | | ????????????????????????????????????????????????? | | ????????????????????????????????????????????????? | | ????????????????????????????????????????????????? | +----------------------------------------------------+ Best States ------------- Heat Dissipation 25 Energy Generation 10 Energy Capacity 250 Matter Stores 300 Matter Capacity 300 Sight Range 16 Terrain Scan Density 10 Weapon Shielding 33 Evasion (%) 55 Item Schematics ----------------- None Robot Schematics ------------------ None Fabricated ------------ Nothing Alien Tech Used ----------------- None Achievements -------------- None Challenges ------------ None Player 2 | -11 -10 -10 ---------- Run | Yrd Mat Min Slots Evolved . | . . . Power . | . . . Propulsion . | . . . Utility . | . . . Weapon . | . . . Parts Attached 19 | . 19 . Parts Lost . | . . . Damage Taken 587 | . 342 245 Core 242 | . 122 120 Player 2/Cogmind (%) 84 | . 93 77 Absorbed by Shields . | . . . Damage Inflicted 819 | . 647 172 Player 2/Cogmind (%) 35 | . 46 17 Combat Hostiles Destroyed 12 | . 10 2 Player 2/Cogmind (%) 40 | . 58 15 Game ------ Seed DeliveryMetafiberChronowheel Manual? 0 Play Time 00:12:44 Cumulative 914.7 hours Start 2024.04.08 @ 15:05:35 End 2024.04.08 @ 15:24:19 Sessions 1 Manual Loads 0 Difficulty Rogue Special Mode AFD2020/Player2 Game No. 285 Rogue 249 Adventurer 36 Explorer 0 Win Type - Total 19 Types 19/0/0/0/0/0/0/0/0 Lore% 55 Gallery% 63 Achievement% 50 Wizard Run 0 Options --------- Layout 1 ASCII 0 Keyboard 1 Movement Vi Keybinds 0 Fullscreen 1 Font 24/Tallcaps Map View 50x35 Zoom Use 0% Tactical HUD 1 Map Filters NONE Filters NONE Steam 0 RUN: 6b297e39-40b1-4b0f-8cb2-b9c1acb2c80f